[Event "Titled Tuesday Blitz July 25 Early 2023"]
[White "Skliarov, Viktor"]
[Black "Harriott, Tyrell"]
[WhiteFideId "14106736"]
[BlackFideId "2086484"]
[WhiteElo "2681"]
[BlackElo "2384"]
[Result "1-0"]
[Round "4"]
[TimeControl "180+2"]
[Date "2023.07.25"]
[WhiteClock "0:00:25"]
[BlackClock "0:00:13"]
[Board "98"]

1. e4 {[%clk 0:03:00]}  d6 {[%clk 0:03:00]} 2. d4 {[%clk 0:03:00]}  Nf6 {[%clk 0:03:01]} 3. Nc3 {[%clk 0:03:01]}  Nbd7 {[%clk 0:03:02]} 4. f3 {[%clk 0:03:01]}  e5 {[%clk 0:03:03]} 5. Nge2 {[%clk 0:03:01]}  Be7 {[%clk 0:03:03]} 6. Be3 {[%clk 0:03:02]}  c6 {[%clk 0:03:03]} 7. g4 {[%clk 0:03:02]}  h6 {[%clk 0:03:03]} 8. Qd2 {[%clk 0:03:02]}  Qa5 {[%clk 0:03:03]} 9. Ng3 {[%clk 0:02:57]}  Nb6 {[%clk 0:02:57]} 10. O-O-O {[%clk 0:02:55]}  Na4 {[%clk 0:02:56]} 11. Nxa4 {[%clk 0:02:54]}  Qxa4 {[%clk 0:02:56]} 12. Kb1 {[%clk 0:02:54]}  Be6 {[%clk 0:02:56]} 13. b3 {[%clk 0:02:54]}  Qa3 {[%clk 0:02:54]} 14. Nf5 {[%clk 0:02:49]}  Bxf5 {[%clk 0:02:53]} 15. gxf5 {[%clk 0:02:49]}  O-O-O {[%clk 0:02:50]} 16. Rg1 {[%clk 0:02:45]}  Nh5 {[%clk 0:02:44]} 17. Bc4 {[%clk 0:02:43]}  Rhf8 {[%clk 0:02:40]} 18. Qc3 {[%clk 0:02:41]}  exd4 {[%clk 0:02:24]} 19. Bxd4 {[%clk 0:02:39]}  Bf6 {[%clk 0:02:20]} 20. Bxf6 {[%clk 0:02:33]}  gxf6 {[%clk 0:02:19]} 21. Qe3 {[%clk 0:02:32]}  b5 {[%clk 0:02:01]} 22. Be2 {[%clk 0:02:22]}  Rg8 {[%clk 0:01:27]} 23. Qxh6 {[%clk 0:02:20]}  Qc5 {[%clk 0:01:24]} 24. Rxg8 {[%clk 0:02:18]}  Rxg8 {[%clk 0:01:23]} 25. Qxh5 {[%clk 0:02:18]}  Rg2 {[%clk 0:01:21]} 26. Bd3 {[%clk 0:01:47]}  a5 {[%clk 0:01:20]} 27. Qh8+ {[%clk 0:01:34]}  Kb7 {[%clk 0:01:16]} 28. Qxf6 {[%clk 0:01:34]}  a4 {[%clk 0:01:15]} 29. bxa4 {[%clk 0:01:34]}  bxa4 {[%clk 0:01:15]} 30. Qxf7+ {[%clk 0:01:32]}  Ka8 {[%clk 0:01:10]} 31. Qc4 {[%clk 0:01:23]}  Qb6+ {[%clk 0:01:01]} 32. Ka1 {[%clk 0:01:23]}  a3 {[%clk 0:00:46]} 33. Qa6+ {[%clk 0:00:49]}  Qxa6 {[%clk 0:00:45]} 34. Bxa6 {[%clk 0:00:50]}  Rxh2 {[%clk 0:00:42]} 35. Kb1 {[%clk 0:00:35]}  Rh6 {[%clk 0:00:40]} 36. c3 {[%clk 0:00:33]}  Rf6 {[%clk 0:00:33]} 37. Be2 {[%clk 0:00:32]}  Kb7 {[%clk 0:00:32]} 38. Kc2 {[%clk 0:00:32]}  Kc7 {[%clk 0:00:31]} 39. Rb1 {[%clk 0:00:32]}  Rh6 {[%clk 0:00:32]} 40. Rb3 {[%clk 0:00:32]}  Rh2 {[%clk 0:00:31]} 41. Kd2 {[%clk 0:00:32]}  Rh5 {[%clk 0:00:27]} 42. Rxa3 {[%clk 0:00:32]}  d5 {[%clk 0:00:27]} 43. Ke3 {[%clk 0:00:32]}  dxe4 {[%clk 0:00:27]} 44. fxe4 {[%clk 0:00:33]}  Rh3+ {[%clk 0:00:27]} 45. Bf3 {[%clk 0:00:33]}  Rh2 {[%clk 0:00:27]} 46. f6 {[%clk 0:00:32]}  Rh8 {[%clk 0:00:25]} 47. Ra7+ {[%clk 0:00:31]}  Kd6 {[%clk 0:00:25]} 48. Kf4 {[%clk 0:00:30]}  Ke6 {[%clk 0:00:25]} 49. e5 {[%clk 0:00:29]}  Rh4+ {[%clk 0:00:24]} 50. Bg4+ {[%clk 0:00:30]}  Kd5 {[%clk 0:00:20]} 51. f7 {[%clk 0:00:30]}  Rh8 {[%clk 0:00:19]} 52. Re7 {[%clk 0:00:29]}  Rf8 {[%clk 0:00:18]} 53. e6 {[%clk 0:00:28]}  Kd6 {[%clk 0:00:18]} 54. Re8 {[%clk 0:00:28]}  c5 {[%clk 0:00:11]} 55. Rxf8 {[%clk 0:00:28]}  Ke7 {[%clk 0:00:12]} 56. Rc8 {[%clk 0:00:27]}  Kd6 {[%clk 0:00:13]} 57. f8=Q+ {[%clk 0:00:27]}  Kd5 {[%clk 0:00:14]} 58. Bf3+ {[%clk 0:00:27]}  Kc4 {[%clk 0:00:14]} 59. Qxc5+ {[%clk 0:00:27]}  Kd3 {[%clk 0:00:14]} 60. Qd4+ {[%clk 0:00:27]}  Kc2 {[%clk 0:00:15]} 61. Be4+ {[%clk 0:00:26]}  Kb2 {[%clk 0:00:15]} 62. c4+ {[%clk 0:00:26]}  Ka3 {[%clk 0:00:13]} 63. Qc3+ {[%clk 0:00:25]} 1-0


[Site "https://www.chess.com"]

[Event "Titled Tuesday Blitz July 25 Early 2023"]
[White "Girinath, P.D.S."]
[Black "Oleksiyenko, Mykhaylo"]
[WhiteFideId "5000572"]
[BlackFideId "4152417"]
[WhiteElo "2357"]
[BlackElo "2676"]
[Result "1-0"]
[Round "4"]
[TimeControl "180+2"]
[Date "2023.07.25"]
[WhiteClock "0:00:02"]
[BlackClock "0:00:08"]
[Board "100"]

1. e4 {[%clk 0:03:00]}  c5 {[%clk 0:02:59]} 2. Nf3 {[%clk 0:02:59]}  e6 {[%clk 0:03:00]} 3. d3 {[%clk 0:02:57]}  Nc6 {[%clk 0:02:57]} 4. g3 {[%clk 0:02:55]}  d5 {[%clk 0:02:56]} 5. Qe2 {[%clk 0:02:54]}  Be7 {[%clk 0:02:54]} 6. Bg2 {[%clk 0:02:53]}  Nf6 {[%clk 0:02:52]} 7. O-O {[%clk 0:02:51]}  b6 {[%clk 0:02:51]} 8. e5 {[%clk 0:02:40]}  Nd7 {[%clk 0:02:49]} 9. c4 {[%clk 0:02:40]}  d4 {[%clk 0:02:34]} 10. Ne1 {[%clk 0:02:28]}  Bb7 {[%clk 0:02:24]} 11. f4 {[%clk 0:02:27]}  Qc7 {[%clk 0:02:23]} 12. Nd2 {[%clk 0:02:27]}  g5 {[%clk 0:02:12]} 13. Ne4 {[%clk 0:02:20]}  gxf4 {[%clk 0:02:12]} 14. Nd6+ {[%clk 0:02:04]}  Bxd6 {[%clk 0:02:05]} 15. exd6 {[%clk 0:02:04]}  Qxd6 {[%clk 0:02:06]} 16. Bxf4 {[%clk 0:02:02]}  Qe7 {[%clk 0:01:36]} 17. Nf3 {[%clk 0:01:59]}  O-O-O {[%clk 0:01:35]} 18. a3 {[%clk 0:01:40]}  e5 {[%clk 0:01:29]} 19. Bg5 {[%clk 0:01:35]}  f6 {[%clk 0:01:28]} 20. Bd2 {[%clk 0:01:34]}  Rde8 {[%clk 0:01:17]} 21. Nh4 {[%clk 0:01:28]}  Nd8 {[%clk 0:01:08]} 22. Nf5 {[%clk 0:01:22]}  Qe6 {[%clk 0:00:39]} 23. b4 {[%clk 0:01:08]}  Rhg8 {[%clk 0:00:37]} 24. a4 {[%clk 0:00:56]}  Bxg2 {[%clk 0:00:26]} 25. Qxg2 {[%clk 0:00:55]}  e4 {[%clk 0:00:26]} 26. dxe4 {[%clk 0:00:55]}  Nb7 {[%clk 0:00:25]} 27. a5 {[%clk 0:00:35]}  bxa5 {[%clk 0:00:25]} 28. bxa5 {[%clk 0:00:25]}  a6 {[%clk 0:00:25]} 29. Rab1 {[%clk 0:00:22]}  Qc6 {[%clk 0:00:17]} 30. Bf4 {[%clk 0:00:18]}  Ne5 {[%clk 0:00:16]} 31. Rb6 {[%clk 0:00:15]}  Qd7 {[%clk 0:00:15]} 32. Rfb1 {[%clk 0:00:12]}  Nxc4 {[%clk 0:00:15]} 33. Rxb7 {[%clk 0:00:11]}  Qxb7 {[%clk 0:00:16]} 34. Rxb7 {[%clk 0:00:10]}  Kxb7 {[%clk 0:00:17]} 35. Qa2 {[%clk 0:00:08]}  Ne5 {[%clk 0:00:17]} 36. Nd6+ {[%clk 0:00:08]}  Kc6 {[%clk 0:00:17]} 37. Nxe8 {[%clk 0:00:08]}  Rxe8 {[%clk 0:00:18]} 38. Bxe5 {[%clk 0:00:08]}  Rxe5 {[%clk 0:00:17]} 39. Qc4 {[%clk 0:00:08]}  Rxe4 {[%clk 0:00:14]} 40. Qxa6+ {[%clk 0:00:08]}  Kd5 {[%clk 0:00:15]} 41. Qb7+ {[%clk 0:00:07]}  Ke5 {[%clk 0:00:15]} 42. a6 {[%clk 0:00:06]}  d3 {[%clk 0:00:16]} 43. Qd7 {[%clk 0:00:03]}  c4 {[%clk 0:00:14]} 44. a7 {[%clk 0:00:02]}  Re1+ {[%clk 0:00:15]} 45. Kf2 {[%clk 0:00:01]}  Ra1 {[%clk 0:00:16]} 46. Kf3 {[%clk 0:00:01]}  Ra2 {[%clk 0:00:14]} 47. Qc7+ {[%clk 0:00:01]}  Kd4 {[%clk 0:00:14]} 48. Qb7 {[%clk 0:00:01]}  d2 {[%clk 0:00:13]} 49. Qd7+ {[%clk 0:00:02]}  Kc3 {[%clk 0:00:12]} 50. Ke2 {[%clk 0:00:02]}  f5 {[%clk 0:00:08]} 51. Qd5 {[%clk 0:00:02]}  Rxa7 {[%clk 0:00:07]} 52. Qxd2+ {[%clk 0:00:02]}  Kb3 {[%clk 0:00:08]} 53. Qe3+ {[%clk 0:00:02]} 1-0


[Site "https://www.chess.com"]

[Event "Titled Tuesday Blitz July 25 Early 2023"]
[White "Antal, Gergely"]
[Black "Matko, Ognjen"]
[WhiteFideId "717312"]
[BlackFideId "14509717"]
[WhiteElo "2674"]
[BlackElo "2341"]
[Result "1-0"]
[Round "4"]
[TimeControl "180+2"]
[Date "2023.07.25"]
[WhiteClock "0:00:44"]
[BlackClock "0:00:06"]
[Board "101"]

1. b3 {[%clk 0:03:00]}  c5 {[%clk 0:02:58]} 2. Bb2 {[%clk 0:03:01]}  Nc6 {[%clk 0:02:58]} 3. Nf3 {[%clk 0:03:01]}  d6 {[%clk 0:02:56]} 4. e4 {[%clk 0:03:01]}  e5 {[%clk 0:02:56]} 5. Bc4 {[%clk 0:03:01]}  g6 {[%clk 0:02:47]} 6. c3 {[%clk 0:03:00]}  Bg7 {[%clk 0:02:46]} 7. d4 {[%clk 0:02:58]}  Nge7 {[%clk 0:02:41]} 8. dxc5 {[%clk 0:02:53]}  dxc5 {[%clk 0:02:06]} 9. Qxd8+ {[%clk 0:02:54]}  Nxd8 {[%clk 0:02:06]} 10. Nbd2 {[%clk 0:02:54]}  O-O {[%clk 0:02:04]} 11. a4 {[%clk 0:02:49]}  b6 {[%clk 0:02:02]} 12. Nf1 {[%clk 0:02:44]}  Bb7 {[%clk 0:02:00]} 13. N3d2 {[%clk 0:02:45]}  Ne6 {[%clk 0:01:49]} 14. Ne3 {[%clk 0:02:43]}  Rad8 {[%clk 0:01:37]} 15. g3 {[%clk 0:02:31]}  Ng5 {[%clk 0:01:34]} 16. f3 {[%clk 0:02:25]}  Rxd2 {[%clk 0:01:29]} 17. Kxd2 {[%clk 0:02:26]}  Nxf3+ {[%clk 0:01:29]} 18. Ke2 {[%clk 0:02:26]}  Bxe4 {[%clk 0:01:28]} 19. a5 {[%clk 0:02:09]}  bxa5 {[%clk 0:01:02]} 20. Rhd1 {[%clk 0:02:03]}  Nd4+ {[%clk 0:00:54]} 21. cxd4 {[%clk 0:02:02]}  exd4 {[%clk 0:00:52]} 22. Nf1 {[%clk 0:01:42]}  d3+ {[%clk 0:00:46]} 23. Ke3 {[%clk 0:01:42]}  Bxb2 {[%clk 0:00:45]} 24. Kxe4 {[%clk 0:01:43]}  Bxa1 {[%clk 0:00:41]} 25. Rxa1 {[%clk 0:01:44]}  Nc6 {[%clk 0:00:38]} 26. Kxd3 {[%clk 0:01:39]}  Rd8+ {[%clk 0:00:37]} 27. Kc3 {[%clk 0:01:29]}  Nb4 {[%clk 0:00:15]} 28. Ne3 {[%clk 0:01:20]}  Re8 {[%clk 0:00:12]} 29. Nd5 {[%clk 0:01:20]}  Nxd5+ {[%clk 0:00:12]} 30. Bxd5 {[%clk 0:01:21]}  Re2 {[%clk 0:00:13]} 31. Rxa5 {[%clk 0:01:15]}  Rxh2 {[%clk 0:00:12]} 32. Rxa7 {[%clk 0:01:15]}  Rf2 {[%clk 0:00:12]} 33. g4 {[%clk 0:01:05]}  h5 {[%clk 0:00:12]} 34. gxh5 {[%clk 0:01:05]}  gxh5 {[%clk 0:00:13]} 35. Kc4 {[%clk 0:00:59]}  h4 {[%clk 0:00:12]} 36. Kxc5 {[%clk 0:00:57]}  h3 {[%clk 0:00:13]} 37. Ra1 {[%clk 0:00:52]}  h2 {[%clk 0:00:12]} 38. b4 {[%clk 0:00:50]}  Rc2+ {[%clk 0:00:11]} 39. Kb6 {[%clk 0:00:45]}  Rd2 {[%clk 0:00:10]} 40. Bc6 {[%clk 0:00:44]}  Rd4 {[%clk 0:00:09]} 41. b5 {[%clk 0:00:44]}  Rg4 {[%clk 0:00:08]} 42. Rh1 {[%clk 0:00:44]}  Rh4 {[%clk 0:00:06]} 43. Kc7 {[%clk 0:00:44]} 1-0


[Site "https://www.chess.com"]

[Event "Titled Tuesday Blitz July 25 Early 2023"]
[White "Martic, Ivan"]
[Black "Sankalan Shah"]
[WhiteFideId "929301"]
[BlackFideId "25600362"]
[WhiteElo "2631"]
[BlackElo "2217"]
[Result "1-0"]
[Round "4"]
[TimeControl "180+2"]
[Date "2023.07.25"]
[WhiteClock "0:02:13"]
[BlackClock "0:01:48"]
[Board "107"]

1. e4 {[%clk 0:03:00]}  c5 {[%clk 0:02:59]} 2. Nc3 {[%clk 0:02:59]}  Nc6 {[%clk 0:02:59]} 3. f4 {[%clk 0:02:59]}  g6 {[%clk 0:02:57]} 4. Nf3 {[%clk 0:02:58]}  Bg7 {[%clk 0:02:57]} 5. Bb5 {[%clk 0:02:58]}  Nd4 {[%clk 0:02:57]} 6. Nxd4 {[%clk 0:02:52]}  cxd4 {[%clk 0:02:57]} 7. Ne2 {[%clk 0:02:52]}  a6 {[%clk 0:02:57]} 8. Bc4 {[%clk 0:02:47]}  b5 {[%clk 0:02:54]} 9. Bb3 {[%clk 0:02:44]}  Bb7 {[%clk 0:02:46]} 10. d3 {[%clk 0:02:44]}  f5 {[%clk 0:02:35]} 11. O-O {[%clk 0:02:35]}  fxe4 {[%clk 0:02:12]} 12. dxe4 {[%clk 0:02:36]}  Bxe4 {[%clk 0:02:12]} 13. Nxd4 {[%clk 0:02:35]}  Qb6 {[%clk 0:02:12]} 14. Be3 {[%clk 0:02:33]}  Nf6 {[%clk 0:02:05]} 15. Nf5 {[%clk 0:02:27]}  Qb7 {[%clk 0:01:57]} 16. Nxg7+ {[%clk 0:02:26]}  Kf8 {[%clk 0:01:57]} 17. Qd2 {[%clk 0:02:18]}  Kxg7 {[%clk 0:01:55]} 18. f5 {[%clk 0:02:15]}  Bxf5 {[%clk 0:01:48]} 19. Bh6# {[%clk 0:02:13]} 1-0


[Site "https://www.chess.com"]

[Event "Titled Tuesday Blitz July 25 Early 2023"]
[White "Maghsoodloo, Parham"]
[Black "Fontaine, Quentin"]
[WhiteFideId "12539929"]
[BlackFideId "230804"]
[WhiteElo "2925"]
[BlackElo "2490"]
[Result "1-0"]
[Round "4"]
[TimeControl "180+2"]
[Date "2023.07.25"]
[WhiteClock "0:01:16"]
[BlackClock "0:00:03"]
[Board "110"]

1. e4 {[%clk 0:03:00]}  e5 {[%clk 0:02:55]} 2. Nf3 {[%clk 0:02:57]}  Nc6 {[%clk 0:02:55]} 3. Bb5 {[%clk 0:02:57]}  a6 {[%clk 0:02:55]} 4. Ba4 {[%clk 0:02:57]}  Nf6 {[%clk 0:02:55]} 5. O-O {[%clk 0:02:57]}  d6 {[%clk 0:02:55]} 6. Re1 {[%clk 0:02:57]}  g6 {[%clk 0:02:55]} 7. c3 {[%clk 0:02:57]}  Bd7 {[%clk 0:02:55]} 8. d4 {[%clk 0:02:57]}  Bg7 {[%clk 0:02:55]} 9. Nbd2 {[%clk 0:02:55]}  O-O {[%clk 0:02:53]} 10. Nf1 {[%clk 0:02:50]}  exd4 {[%clk 0:02:44]} 11. cxd4 {[%clk 0:02:50]}  b5 {[%clk 0:02:45]} 12. Bc2 {[%clk 0:02:49]}  Bg4 {[%clk 0:02:45]} 13. Be3 {[%clk 0:02:48]}  Nh5 {[%clk 0:02:44]} 14. d5 {[%clk 0:02:43]}  Ne5 {[%clk 0:02:31]} 15. N1d2 {[%clk 0:02:39]}  Qf6 {[%clk 0:02:08]} 16. Rb1 {[%clk 0:02:35]}  Nxf3+ {[%clk 0:01:33]} 17. Nxf3 {[%clk 0:02:36]}  Bxf3 {[%clk 0:01:34]} 18. Qxf3 {[%clk 0:02:36]}  Qxf3 {[%clk 0:01:34]} 19. gxf3 {[%clk 0:02:36]}  Be5 {[%clk 0:01:35]} 20. a4 {[%clk 0:02:29]}  b4 {[%clk 0:01:32]} 21. a5 {[%clk 0:02:28]}  Rfc8 {[%clk 0:01:18]} 22. Ba4 {[%clk 0:02:22]}  Rab8 {[%clk 0:01:11]} 23. Rec1 {[%clk 0:02:18]}  b3 {[%clk 0:01:05]} 24. Bd7 {[%clk 0:02:17]}  Rd8 {[%clk 0:01:01]} 25. Rxc7 {[%clk 0:02:17]}  Nf4 {[%clk 0:00:31]} 26. Bxf4 {[%clk 0:02:17]}  Bxf4 {[%clk 0:00:31]} 27. Bc6 {[%clk 0:02:14]}  Bd2 {[%clk 0:00:26]} 28. Ra1 {[%clk 0:02:14]}  Rb4 {[%clk 0:00:19]} 29. Ra7 {[%clk 0:02:12]}  Rd4 {[%clk 0:00:16]} 30. Rxa6 {[%clk 0:02:12]}  Bb4 {[%clk 0:00:14]} 31. Rb6 {[%clk 0:02:12]}  Bc5 {[%clk 0:00:11]} 32. Rxb3 {[%clk 0:02:12]}  Rd2 {[%clk 0:00:11]} 33. Rf1 {[%clk 0:02:12]}  f5 {[%clk 0:00:11]} 34. a6 {[%clk 0:01:44]}  fxe4 {[%clk 0:00:09]} 35. fxe4 {[%clk 0:01:45]}  Rf8 {[%clk 0:00:09]} 36. Rb5 {[%clk 0:01:39]}  Bd4 {[%clk 0:00:05]} 37. Kh1 {[%clk 0:01:24]}  Bxf2 {[%clk 0:00:02]} 38. Rb7 {[%clk 0:01:18]}  Bd4 {[%clk 0:00:02]} 39. Rxf8+ {[%clk 0:01:17]}  Kxf8 {[%clk 0:00:03]} 40. a7 {[%clk 0:01:17]}  Rd1+ {[%clk 0:00:02]} 41. Kg2 {[%clk 0:01:18]}  Ra1 {[%clk 0:00:03]} 42. Rb8+ {[%clk 0:01:16]} 1-0


[Site "https://www.chess.com"]

[Event "Titled Tuesday Blitz July 25 Early 2023"]
[White "Salman, Pavel"]
[Black "Molina, Roberto Junio Brito"]
[WhiteFideId "24153753"]
[BlackFideId "2109450"]
[WhiteElo "2483"]
[BlackElo "2878"]
[Result "1-0"]
[Round "4"]
[TimeControl "180+2"]
[Date "2023.07.25"]
[WhiteClock "0:00:10"]
[BlackClock "0:00:02"]
[Board "112"]

1. Nf3 {[%clk 0:02:59]}  c6 {[%clk 0:03:00]} 2. g3 {[%clk 0:02:59]}  d5 {[%clk 0:03:01]} 3. Bg2 {[%clk 0:03:00]}  Bg4 {[%clk 0:03:01]} 4. h3 {[%clk 0:02:59]}  Bh5 {[%clk 0:03:01]} 5. d3 {[%clk 0:02:59]}  Nd7 {[%clk 0:03:01]} 6. O-O {[%clk 0:02:59]}  e6 {[%clk 0:03:01]} 7. e4 {[%clk 0:02:59]}  Bd6 {[%clk 0:03:01]} 8. Qe1 {[%clk 0:02:59]}  Ne7 {[%clk 0:03:00]} 9. Be3 {[%clk 0:02:49]}  O-O {[%clk 0:02:58]} 10. Nbd2 {[%clk 0:02:50]}  c5 {[%clk 0:02:57]} 11. c3 {[%clk 0:02:47]}  Rc8 {[%clk 0:02:54]} 12. Nh4 {[%clk 0:02:42]}  f6 {[%clk 0:02:49]} 13. f4 {[%clk 0:02:41]}  Bf7 {[%clk 0:02:48]} 14. Kh1 {[%clk 0:02:33]}  Qb6 {[%clk 0:02:44]} 15. b4 {[%clk 0:02:21]}  Qa6 {[%clk 0:02:42]} 16. bxc5 {[%clk 0:02:18]}  Nxc5 {[%clk 0:02:41]} 17. Bxc5 {[%clk 0:02:16]}  Bxc5 {[%clk 0:02:25]} 18. d4 {[%clk 0:02:13]}  Bb6 {[%clk 0:02:25]} 19. Qe3 {[%clk 0:02:04]}  Ba5 {[%clk 0:02:16]} 20. Rac1 {[%clk 0:02:02]}  Rc7 {[%clk 0:02:13]} 21. Nb3 {[%clk 0:01:58]}  Bb6 {[%clk 0:02:10]} 22. Rf2 {[%clk 0:01:51]}  Rfc8 {[%clk 0:02:08]} 23. e5 {[%clk 0:01:43]}  f5 {[%clk 0:02:02]} 24. g4 {[%clk 0:01:44]}  Bg6 {[%clk 0:01:55]} 25. Nxg6 {[%clk 0:01:38]}  hxg6 {[%clk 0:01:53]} 26. Qg3 {[%clk 0:01:34]}  Kf7 {[%clk 0:01:47]} 27. Bf1 {[%clk 0:01:26]}  Qa4 {[%clk 0:01:44]} 28. Rg2 {[%clk 0:01:26]}  fxg4 {[%clk 0:01:08]} 29. hxg4 {[%clk 0:01:18]}  Rh8+ {[%clk 0:01:01]} 30. Kg1 {[%clk 0:01:18]}  Qe8 {[%clk 0:00:58]} 31. Bd3 {[%clk 0:01:15]}  Qg8 {[%clk 0:00:53]} 32. f5 {[%clk 0:01:14]}  gxf5 {[%clk 0:00:49]} 33. gxf5 {[%clk 0:01:15]}  exf5 {[%clk 0:00:37]} 34. Bxf5 {[%clk 0:01:02]}  Rc6 {[%clk 0:00:28]} 35. e6+ {[%clk 0:00:58]}  Ke8 {[%clk 0:00:28]} 36. Bg6+ {[%clk 0:00:50]}  Kd8 {[%clk 0:00:24]} 37. Bf7 {[%clk 0:00:46]}  Qh7 {[%clk 0:00:24]} 38. Qb8+ {[%clk 0:00:46]}  Nc8 {[%clk 0:00:23]} 39. Qe5 {[%clk 0:00:33]}  Qh1+ {[%clk 0:00:16]} 40. Kf2 {[%clk 0:00:34]}  Qh4+ {[%clk 0:00:16]} 41. Ke2 {[%clk 0:00:33]}  Bc7 {[%clk 0:00:10]} 42. Qxd5+ {[%clk 0:00:27]}  Rd6 {[%clk 0:00:10]} 43. Qg5+ {[%clk 0:00:26]}  Qxg5 {[%clk 0:00:09]} 44. Rxg5 {[%clk 0:00:27]}  Ra6 {[%clk 0:00:07]} 45. Rxg7 {[%clk 0:00:23]}  Rxa2+ {[%clk 0:00:07]} 46. Kd3 {[%clk 0:00:22]}  Bd6 {[%clk 0:00:05]} 47. Rg8+ {[%clk 0:00:19]}  Rxg8 {[%clk 0:00:05]} 48. Bxg8 {[%clk 0:00:20]}  b6 {[%clk 0:00:05]} 49. Bf7 {[%clk 0:00:17]}  Be7 {[%clk 0:00:05]} 50. Rh1 {[%clk 0:00:17]}  Nd6 {[%clk 0:00:06]} 51. Rh8+ {[%clk 0:00:16]}  Kc7 {[%clk 0:00:06]} 52. Nd2 {[%clk 0:00:15]}  Ra1 {[%clk 0:00:05]} 53. Kc2 {[%clk 0:00:13]}  Re1 {[%clk 0:00:04]} 54. Nf3 {[%clk 0:00:12]}  Rf1 {[%clk 0:00:03]} 55. Ne5 {[%clk 0:00:12]}  Rf5 {[%clk 0:00:03]} 56. Bg6 {[%clk 0:00:11]}  Rf2+ {[%clk 0:00:03]} 57. Kb3 {[%clk 0:00:11]}  Nb5 {[%clk 0:00:02]} 58. Rh7 {[%clk 0:00:10]} 1-0


[Site "https://www.chess.com"]

[Event "Titled Tuesday Blitz July 25 Early 2023"]
[White "Kushagra Mohan"]
[Black "Onufrienko, Vladislav"]
[WhiteFideId "25033638"]
[BlackFideId "13804332"]
[WhiteElo "2855"]
[BlackElo "2485"]
[Result "1-0"]
[Round "4"]
[TimeControl "180+2"]
[Date "2023.07.25"]
[WhiteClock "0:00:42"]
[BlackClock "0:00:01"]
[Board "113"]

1. e4 {[%clk 0:03:00]}  Nf6 {[%clk 0:03:00]} 2. e5 {[%clk 0:03:01]}  Nd5 {[%clk 0:03:00]} 3. d4 {[%clk 0:03:01]}  d6 {[%clk 0:03:00]} 4. Nf3 {[%clk 0:03:02]}  dxe5 {[%clk 0:03:01]} 5. Nxe5 {[%clk 0:03:03]}  Nd7 {[%clk 0:03:01]} 6. Nf3 {[%clk 0:03:01]}  N7f6 {[%clk 0:03:01]} 7. Be2 {[%clk 0:03:02]}  Bf5 {[%clk 0:02:59]} 8. O-O {[%clk 0:03:02]}  e6 {[%clk 0:03:00]} 9. c4 {[%clk 0:03:02]}  Nb4 {[%clk 0:02:58]} 10. Nc3 {[%clk 0:03:00]}  Nc2 {[%clk 0:02:56]} 11. Rb1 {[%clk 0:03:00]}  Nb4 {[%clk 0:02:55]} 12. Ra1 {[%clk 0:03:01]}  Nc2 {[%clk 0:02:55]} 13. Nh4 {[%clk 0:02:43]}  Nxd4 {[%clk 0:02:36]} 14. Nxf5 {[%clk 0:02:42]}  Nxf5 {[%clk 0:02:37]} 15. Qb3 {[%clk 0:02:36]}  Nd4 {[%clk 0:02:17]} 16. Qxb7 {[%clk 0:02:36]}  Rb8 {[%clk 0:02:17]} 17. Qa6 {[%clk 0:02:35]}  Bb4 {[%clk 0:02:07]} 18. Qa4+ {[%clk 0:02:28]}  c6 {[%clk 0:02:01]} 19. Bd1 {[%clk 0:02:26]}  O-O {[%clk 0:01:57]} 20. Be3 {[%clk 0:02:26]}  Bc5 {[%clk 0:01:36]} 21. a3 {[%clk 0:02:25]}  e5 {[%clk 0:01:05]} 22. b4 {[%clk 0:02:21]}  Bd6 {[%clk 0:00:58]} 23. c5 {[%clk 0:02:17]}  Bc7 {[%clk 0:00:58]} 24. h3 {[%clk 0:02:14]}  Nd5 {[%clk 0:00:52]} 25. Nxd5 {[%clk 0:02:14]}  Qxd5 {[%clk 0:00:53]} 26. Qxa7 {[%clk 0:02:00]}  Rfc8 {[%clk 0:00:33]} 27. Qa6 {[%clk 0:01:55]}  f5 {[%clk 0:00:20]} 28. Bxd4 {[%clk 0:01:47]}  Qxd4 {[%clk 0:00:21]} 29. Qe2 {[%clk 0:01:42]}  Kh8 {[%clk 0:00:15]} 30. Bc2 {[%clk 0:01:33]}  e4 {[%clk 0:00:15]} 31. Rad1 {[%clk 0:01:30]}  Qe5 {[%clk 0:00:16]} 32. g3 {[%clk 0:01:31]}  Ra8 {[%clk 0:00:14]} 33. Qe3 {[%clk 0:01:25]}  Rf8 {[%clk 0:00:10]} 34. Rd7 {[%clk 0:01:21]}  Bb8 {[%clk 0:00:05]} 35. Rfd1 {[%clk 0:01:19]}  Qb2 {[%clk 0:00:05]} 36. Bb3 {[%clk 0:01:01]}  Qxa3 {[%clk 0:00:04]} 37. Rf7 {[%clk 0:00:56]}  Be5 {[%clk 0:00:02]} 38. Rdd7 {[%clk 0:00:46]}  Rxf7 {[%clk 0:00:02]} 39. Rxf7 {[%clk 0:00:47]}  Re8 {[%clk 0:00:01]} 40. Rxf5 {[%clk 0:00:45]}  Bf6 {[%clk 0:00:02]} 41. b5 {[%clk 0:00:42]}  cxb5 {[%clk 0:00:01]} 42. c6 {[%clk 0:00:43]}  Rd8 {[%clk 0:00:01]} 43. c7 {[%clk 0:00:42]}  Rc8 {[%clk 0:00:01]} 44. Rc5 {[%clk 0:00:42]} 1-0


[Site "https://www.chess.com"]

[Event "Titled Tuesday Blitz July 25 Early 2023"]
[White "Putnam, Liam"]
[Black "Erzhanov, Arman"]
[WhiteFideId "30938279"]
[BlackFideId "4138821"]
[WhiteElo "2802"]
[BlackElo "2482"]
[Result "1-0"]
[Round "4"]
[TimeControl "180+2"]
[Date "2023.07.25"]
[WhiteClock "0:02:09"]
[BlackClock "0:00:43"]
[Board "114"]

1. h4 {[%clk 0:02:57]}  d5 {[%clk 0:02:53]} 2. a4 {[%clk 0:02:55]}  c5 {[%clk 0:02:51]} 3. Nf3 {[%clk 0:02:54]}  Nc6 {[%clk 0:02:50]} 4. d3 {[%clk 0:02:52]}  e5 {[%clk 0:02:49]} 5. Nbd2 {[%clk 0:02:51]}  Bg4 {[%clk 0:02:47]} 6. e4 {[%clk 0:02:50]}  Nf6 {[%clk 0:02:42]} 7. Be2 {[%clk 0:02:49]}  Be7 {[%clk 0:02:35]} 8. exd5 {[%clk 0:02:49]}  Qxd5 {[%clk 0:02:34]} 9. Nc4 {[%clk 0:02:47]}  O-O-O {[%clk 0:02:25]} 10. Ne3 {[%clk 0:02:44]}  Qd7 {[%clk 0:02:20]} 11. Nxg4 {[%clk 0:02:39]}  Nxg4 {[%clk 0:02:21]} 12. Ng5 {[%clk 0:02:38]}  Nh6 {[%clk 0:02:19]} 13. Nxf7 {[%clk 0:02:37]}  Kb8 {[%clk 0:02:11]} 14. Nxh8 {[%clk 0:02:35]}  Rxh8 {[%clk 0:02:12]} 15. Bxh6 {[%clk 0:02:36]}  gxh6 {[%clk 0:02:12]} 16. Bf3 {[%clk 0:02:36]}  Nd4 {[%clk 0:02:11]} 17. c3 {[%clk 0:02:36]}  Ne6 {[%clk 0:02:11]} 18. Bg4 {[%clk 0:02:36]}  Qd5 {[%clk 0:02:10]} 19. Bxe6 {[%clk 0:02:35]}  Qxe6 {[%clk 0:02:08]} 20. Qe2 {[%clk 0:02:35]}  Rg8 {[%clk 0:02:06]} 21. g3 {[%clk 0:02:36]}  Bd6 {[%clk 0:02:00]} 22. Kf1 {[%clk 0:02:36]}  c4 {[%clk 0:01:44]} 23. Rd1 {[%clk 0:02:25]}  cxd3 {[%clk 0:01:43]} 24. Qxd3 {[%clk 0:02:26]}  Bc7 {[%clk 0:01:31]} 25. Qxh7 {[%clk 0:02:25]}  Rf8 {[%clk 0:01:30]} 26. Qe4 {[%clk 0:02:22]}  Bb6 {[%clk 0:01:27]} 27. Rd2 {[%clk 0:02:22]}  a6 {[%clk 0:01:04]} 28. Kg2 {[%clk 0:02:20]}  Ka7 {[%clk 0:01:03]} 29. Rhd1 {[%clk 0:02:14]}  Rf5 {[%clk 0:00:56]} 30. b4 {[%clk 0:02:10]}  Qf7 {[%clk 0:00:54]} 31. f3 {[%clk 0:02:10]}  a5 {[%clk 0:00:47]} 32. Rd7 {[%clk 0:02:09]}  Qe6 {[%clk 0:00:43]} 33. Qxb7# {[%clk 0:02:09]} 1-0


[Site "https://www.chess.com"]